fUST/lending_fUST_20250324
["ID","MTS","AMOUNT","RATE_DAILY","PERIOD"]
[356599759,1742769102630,717.08,0.00048544,120]
[356599760,1742769102719,8102.51,0.00048544,120]
[356599761,1742769102876,500.0,0.00048544,120]
[356599762,1742769102906,717.08,0.00048544,120]
[356599763,1742769102967,8102.51,0.00048544,120]
[356599764,1742769103126,717.08,0.00048544,120]
[356599765,1742769103156,500.0,0.00048544,120]
[356599766,1742769103213,8102.51,0.00048544,120]
[356599767,1742769103382,717.08,0.00048544,120]
[356599768,1742769103412,500.0,0.00048544,120]
[356599769,1742769103472,8102.51,0.00048544,120]
[356599770,1742769103639,225.38789256,0.00048544,120]
[356599771,1742769103669,717.08,0.00048544,120]
[356599772,1742769103742,8102.5332416,0.00048544,120]
[356599773,1742769103884,717.08,0.00048544,120]
[356599774,1742769104143,717.08,0.00048544,120]
[356599775,1742769104492,717.08,0.00048544,120]
[356599776,1742769104911,717.08,0.00048544,120]
[356599777,1742769105382,717.08,0.00048544,120]
[356599778,1742769105645,717.08,0.00048544,120]
[356599779,1742769105911,717.08,0.00048544,120]
[356599780,1742769106207,717.08,0.00048544,120]
[356599781,1742769106457,717.08,0.00048544,120]
[356599782,1742769106693,717.08,0.00048544,120]
[356599783,1742769106935,717.08,0.00048544,120]
[356599784,1742769107229,717.08,0.00048544,120]
[356599785,1742769107259,500.0,0.00048544,120]
[356599786,1742769107467,717.12063921,0.00048544,120]
[356599787,1742769107502,500.0,0.00048544,120]
[356599788,1742769107768,500.0,0.00048544,120]
[356599789,1742769108131,500.0,0.00048544,120]
[356599790,1742769108282,500.0,0.00048544,120]
[356599791,1742769108556,500.0,0.00048544,120]
[356599792,1742769108703,500.0,0.00048544,120]
[356599793,1742769108802,500.0,0.00048544,120]
[356599794,1742769108993,500.0,0.00048544,120]
[356599795,1742769109049,500.0,0.00048544,120]
[356599796,1742769109233,500.0,0.00048544,120]
[356599797,1742769109461,500.0,0.00048544,120]
[356599798,1742769109490,500.0,0.00048544,120]
[356599799,1742769109725,500.0,0.00048544,120]
[356599800,1742769109756,500.0,0.00048544,120]
[356599801,1742769109996,500.0,0.00048544,120]
[356599802,1742769110026,500.0,0.00048544,120]
[356599803,1742769110245,500.0,0.00048544,120]
[356599804,1742769110275,500.0,0.00048544,120]
[356599805,1742769110486,383.58254418,0.00048544,120]
[356599806,1742769110613,500.0,0.00048544,120]
[356599807,1742769110648,805.19,0.00048544,120]
[356599808,1742769110839,500.0,0.00048544,120]
[356599809,1742769110906,805.19,0.00048544,120]
[356599810,1742769111080,500.0,0.00048544,120]
[356599811,1742769111161,805.19,0.00048544,120]
[356599812,1742769111323,500.0,0.00048544,120]
[356599813,1742769111396,805.19,0.00048544,120]
[356599814,1742769111578,500.0,0.00048544,120]
[356599815,1742769111740,805.19,0.00048544,120]
[356599816,1742769111824,500.0,0.00048544,120]
[356599817,1742769112001,805.19,0.00048544,120]
[356599818,1742769112073,500.0,0.00048544,120]
[356599819,1742769112251,805.19,0.00048544,120]
[356599820,1742769112500,805.19,0.00048544,120]
[356599821,1742769112565,500.0,0.00048544,120]
[356599822,1742769112765,805.19,0.00048544,120]
[356599823,1742769112815,500.0,0.00048544,120]
[356599825,1742769113045,805.19,0.00048544,120]
[356599826,1742769113117,453.8224108,0.00048544,120]
[356599828,1742769113280,805.19,0.00048544,120]
[356599829,1742769113494,858.44,0.00048544,120]
[356599830,1742769113529,805.19,0.00048544,120]
[356599831,1742769113767,858.44,0.00048544,120]
[356599832,1742769113801,805.19,0.00048544,120]
[356599833,1742769114024,858.44,0.00048544,120]
[356599834,1742769114059,805.19,0.00048544,120]
[356599836,1742769114272,858.44,0.00048544,120]
[356599837,1742769114330,805.19,0.00048544,120]
[356599839,1742769114553,858.44,0.00048544,120]
[356599840,1742769114586,805.19,0.00048544,120]
[356599842,1742769114813,858.44,0.00048544,120]
[356599843,1742769114844,805.19,0.00048544,120]
[356599845,1742769115065,805.19,0.00048544,120]
[356599846,1742769115096,858.44,0.00048544,120]
[356599848,1742769115326,858.44,0.00048544,120]
[356599849,1742769115360,805.19,0.00048544,120]
[356599851,1742769115579,858.44,0.00048544,120]
[356599852,1742769115822,858.44,0.00048544,120]
[356599854,1742769116036,805.19,0.00048544,120]
[356599855,1742769116069,858.44,0.00048544,120]
[356599857,1742769116322,805.19,0.00048544,120]
[356599858,1742769116358,858.44,0.00048544,120]
[356599860,1742769116590,858.44,0.00048544,120]
[356599861,1742769116624,805.19,0.00048544,120]
[356599863,1742769116839,858.44,0.00048544,120]
[356599864,1742769116870,805.19,0.00048544,120]
[356599865,1742769116901,500.0,0.00048544,120]
[356599867,1742769117089,858.44,0.00048544,120]
[356599868,1742769117136,805.38205734,0.00048544,120]
[356599869,1742769117169,500.0,0.00048544,120]
[356599871,1742769117341,858.44,0.00048544,120]
[356599872,1742769117415,500.0,0.00048544,120]
[356599874,1742769117603,858.44,0.00048544,120]
[356599876,1742769117901,500.0,0.00048544,120]
[356599877,1742769117954,428.69373009,0.00048544,120]
[356599879,1742769118063,858.44,0.00048544,120]
[356599883,1742769118387,858.44,0.00048544,120]
[356599885,1742769118659,858.44,0.00048544,120]
[356599887,1742769118952,858.44,0.00048544,120]
[356599888,1742769118983,500.0,0.00048544,120]
[356599890,1742769119219,500.0,0.00048544,120]
[356599892,1742769119467,500.0,0.00048544,120]
[356599894,1742769119546,858.44,0.00048544,120]
[356599895,1742769119705,500.0,0.00048544,120]
[356599897,1742769119819,858.44,0.00048544,120]
[356599899,1742769120154,858.60177197,0.00048544,120]
[356599901,1742769120434,500.0,0.00048544,120]
[356599902,1742769120817,500.0,0.00048544,120]
[356599903,1742769121095,500.0,0.00048544,120]
[356599904,1742769121340,500.0,0.00048544,120]
[356599905,1742769121601,500.0,0.00048544,120]
[356599906,1742769121844,500.0,0.00048544,120]
[356599907,1742769122091,500.0,0.00048544,120]
[356599908,1742769122395,500.0,0.00048544,120]
[356599910,1742769122645,500.0,0.00048544,120]
[356599912,1742769122903,500.0,0.00048544,120]
[356599914,1742769123162,239.70412352,0.00048544,120]
[356599927,1742769126397,204.08190447,0.00048544,120]
[356599934,1742769127748,500.0,0.00048544,120]
[356599935,1742769128005,500.0,0.00048544,120]
[356599937,1742769128252,500.0,0.00048544,120]
[356599940,1742769128507,573.39845283,0.00048544,120]
[356599947,1742769130929,1755.13,0.00048544,120]
[356599950,1742769131198,1755.13,0.00048544,120]
[356599952,1742769131494,1755.13,0.00048544,120]
[356599954,1742769131797,1755.13,0.00048544,120]
[356599956,1742769131995,1755.13,0.00048544,120]
[356599958,1742769132266,1755.13,0.00048544,120]
[356599960,1742769132609,1755.13,0.00048544,120]
[356599961,1742769132713,500.0,0.00048544,120]
[356599964,1742769132861,1755.13,0.00048544,120]
[356599965,1742769132985,500.0,0.00048544,120]
[356599967,1742769133271,500.0,0.00048544,120]
[356599970,1742769133583,500.0,0.00048544,120]
[356599974,1742769133988,1755.13,0.00048544,120]
[356599977,1742769134237,500.0,0.00048544,120]
[356599978,1742769134409,1755.13,0.00048544,120]
[356599980,1742769134503,500.0,0.00048544,120]
[356599981,1742769134652,1755.13,0.00048544,120]
[356599982,1742769134750,500.0,0.00048544,120]
[356599984,1742769134916,1755.13,0.00048544,120]
[356599985,1742769135027,500.0,0.00048544,120]
[356599987,1742769135158,1755.13,0.00048544,120]
[356599988,1742769135266,500.0,0.00048544,120]
[356599990,1742769135421,1755.13,0.00048544,120]
[356599991,1742769135503,500.0,0.00048544,120]
[356599993,1742769135677,1755.13,0.00048544,120]
[356599994,1742769135795,494.87739421,0.00048544,120]
[356599996,1742769135929,1755.13,0.00048544,120]
[356599998,1742769136174,1755.13,0.00048544,120]
[356599999,1742769136468,1755.13,0.00048544,120]
[356600001,1742769136979,1755.13,0.00048544,120]
[356600003,1742769137278,1755.13,0.00048544,120]
[356600005,1742769137532,1755.13,0.00048544,120]
[356600007,1742769137805,1755.13,0.00048544,120]
[356600009,1742769138103,1755.13,0.00048544,120]
[356600012,1742769138383,1755.32126568,0.00048544,120]
[356600014,1742769140329,5596.3,0.00048544,120]
[356600015,1742769140492,1958.19,0.00048544,120]
[356600016,1742769140578,5596.3,0.00048544,120]
[356600017,1742769140727,1958.19,0.00048544,120]
[356600019,1742769140889,5596.3,0.00048544,120]
[356600020,1742769141131,3303.92,0.00048544,120]
[356600021,1742769141213,1958.19,0.00048544,120]
[356600022,1742769141275,5596.3,0.00048544,120]
[356600023,1742769141354,3303.92,0.00048544,120]
[356600024,1742769141409,1958.19,0.00048544,120]
[356600025,1742769141474,5596.3,0.00048544,120]
[356600026,1742769141596,3303.92,0.00048544,120]
[356600028,1742769141645,1958.19,0.00048544,120]
[356600029,1742769141710,5596.3,0.00048544,120]
[356600030,1742769141771,3303.92,0.00048544,120]
[356600031,1742769141821,1958.19,0.00048544,120]
[356600033,1742769141917,5596.3,0.00048544,120]
[356600034,1742769142041,1958.19,0.00048544,120]
[356600036,1742769142165,5596.3,0.00048544,120]
[356600039,1742769142287,1958.19,0.00048544,120]
[356600042,1742769142404,5596.3,0.00048544,120]
[356600044,1742769142456,3303.92,0.00048544,120]
[356600045,1742769142541,1958.19,0.00048544,120]
[356600047,1742769142643,5596.3,0.00048544,120]
[356600049,1742769142741,3303.92,0.00048544,120]
[356600050,1742769142794,1958.19,0.00048544,120]
[356600052,1742769142887,5596.3,0.00048544,120]
[356600054,1742769142992,3303.92,0.00048544,120]
[356600055,1742769143050,1958.19,0.00048544,120]
[356600057,1742769143147,5596.3,0.00048544,120]
[356600059,1742769143246,3303.92,0.00048544,120]
[356600060,1742769143292,1958.19,0.00048544,120]
[356600062,1742769143378,1395.39563104,0.00048544,120]
[356600279,1742769244147,187.17464461,0.0001522,120]
[356600564,1742769909504,-188.5442356,0.00013462,2]
[356600588,1742770046125,-175.01552586,0.00013462,2]
[356600589,1742770046149,-1506.60254844,0.00013598,2]
[356600590,1742770046175,-202.4513591,0.00013699,2]
[356600591,1742770046197,-834.51197368,0.0001372,2]
[356600592,1742770046218,-160.0,0.0001372,2]
[356600593,1742770046241,-418.2242758,0.0001372,2]
[356600594,1742770046262,-160.0,0.0001372,2]
[356600595,1742770046282,-160.0,0.0001372,2]
[356600596,1742770046304,-600.0,0.00013973,2]
[356600597,1742770046328,-300.0,0.00013979,2]
[356600598,1742770046349,-1100.0000039,0.0001398,2]
[356600599,1742770046372,-500.0,0.0001398,2]
[356600600,1742770046395,-500.0,0.0001398,2]
[356600601,1742770046419,-500.0,0.0001398,2]
[356600602,1742770046442,-199.70869981,0.0001398,2]
[356600657,1742770243828,-160.0,0.0001398,2]
[356600658,1742770243838,-834.51197368,0.0001398,2]
[356600659,1742770243848,-418.2242758,0.0001398,2]
[356600660,1742770243857,-160.801772,0.00014,3]
[356600661,1742770243867,-160.0,0.00014028,2]
[356600662,1742770243876,-10.31663688,0.00014028,2]
[356600664,1742770243888,-6366.29189351,0.00014028,2]
[356600665,1742770243907,-6082.32967107,0.00014028,2]
[356600666,1742770243917,-160.0,0.00014028,2]
[356600667,1742770243927,-300.0,0.00014048,2]
[356600668,1742770243936,-150.0,0.00014049,2]
[356600670,1742770243946,-541.0,0.00014049,2]
[356600672,1742770243955,-1915.0,0.00014049,2]
[356600674,1742770243964,-2264.0,0.00014049,2]
[356600675,1742770243973,-400.0,0.0001405,2]
[356600677,1742770243982,-500.0,0.00014096,2]
[356600679,1742770243992,-500.0,0.00014096,2]
[356600681,1742770244002,-347.02181219,0.00014096,2]
[356600682,1742770244011,-2200.0,0.00014097,2]
[356600684,1742770244020,-300.0,0.000142,5]
[356600686,1742770244030,-600.0,0.00014202,2]
[356600687,1742770244039,-3117.3757398,0.00014311,2]
[356600689,1742770244049,-152.0,0.00014347,2]
[356600691,1742770244059,-1258.6312792,0.0001435,2]
[356600693,1742770244068,-600.0,0.0001435,2]
[356600695,1742770244077,-600.0,0.00014366,2]
[356600696,1742770244087,-15059.62940726,0.00014375,2]
[356600697,1742770244096,-622.2,0.00014421,2]
[356600698,1742770244105,-645.2214,0.00014476,2]
[356600699,1742770244115,-600.0,0.00014498,2]
[356600700,1742770244124,-669.0945918,0.00014531,2]
[356600701,1742770244134,-693.8510917,0.00014586,2]
[356600702,1742770244143,-167.967719,0.00014637,2]
[356600703,1742770244153,-1000.0,0.00014637,2]
[356600704,1742770244162,-719.52358209,0.00014641,2]
[356600705,1742770244172,-341.15998412,0.00014645,2]
[356600706,1742770244181,-18223.94836242,0.00014646,2]
[356600707,1742770244191,-600.0,0.00014646,2]
[356600708,1742770244201,-746.14595463,0.00014696,2]
[356600709,1742770244210,-151.0,0.00014793,2]
[356600710,1742770244221,-600.0,0.00014794,2]
[356600711,1742770244236,-570.90028137,0.000149,2]
[356600712,1742770244246,-199.59226769,0.000149,2]
[356600713,1742770244256,-199.59226769,0.000149,2]
[356600714,1742770244265,-808.09582709,0.00014942,2]
[356600715,1742770244278,-320.94385552,0.00014993,2]
[356600716,1742770244287,-980.0,0.00015,4]
[356600717,1742770244297,-42480.80255551,0.00015,4]
[356600718,1742770244306,-16000.0,0.00015,2]
[356600719,1742770244316,-7280.0,0.00015,2]
[356600720,1742770244326,-2000.0,0.00015,2]
[356600721,1742770244336,-347.14033762,0.00015183,2]
[356600722,1742770244345,-2000.0,0.0001522,2]
[356600723,1742770244355,-30020.09495603,0.0001525,2]
[356600724,1742770244366,-769.62,0.000153,2]
[356600725,1742770244375,-420.0,0.0001539,2]
[356600726,1742770244385,-708.92548278,0.000155,2]
[356600727,1742770244395,-354.39088526,0.0001557,2]
[356600728,1742770244406,-300.0,0.000157,6]
[356600729,1742770244415,-500.0,0.00015973,2]
[356600730,1742770244425,-500.0,0.00015973,2]
[356600731,1742770244435,-500.0,0.00015973,2]
[356600732,1742770244446,-500.0,0.00015973,2]
[356600733,1742770244456,-500.0,0.00015973,2]
[356600734,1742770244467,-500.0,0.00015973,2]
[356600735,1742770244477,-9375.6029639,0.00016,2]
[356600736,1742770244489,-40560.18363412,0.00016,2]
[356600737,1742770244499,-3000.0,0.00016,2]
[356600738,1742770244510,-5000.0,0.00016,2]
[356600739,1742770244520,-5000.0,0.00016,2]
[356600740,1742770244530,-965.96399203,0.00016,2]
[356600741,1742770244540,-1000.0,0.00016006,2]
[356600742,1742770244550,-3000.0,0.0001601,2]
[356600743,1742770244560,-5735.753244,0.0001602,2]
[356600744,1742770244570,-500.0,0.00016194,2]
[356600745,1742770244580,-188.5442356,0.000162,2]
[356600746,1742770244590,-500.0,0.00016273,2]
[356600747,1742770244600,-236.988332,0.00016438,2]
[356600748,1742770244610,-1920.5124572,0.00016438,2]
[356600749,1742770244620,-9904.6641858,0.000167,2]
[356600750,1742770244630,-9904.66418558,0.000167,2]
[356600751,1742770244640,-587.0,0.00016859,2]
[356600752,1742770244650,-28830.45483541,0.00017,2]
[356600753,1742770244660,-12916.2851315,0.00017,5]
[356600754,1742770244670,-102.19555124,0.00017,120]
[356600755,1742770244679,-541.0,0.00017049,2]
[356600756,1742770244689,-1915.0,0.00017049,2]
[356600757,1742770244699,-2264.0,0.00017049,2]
[356600758,1742770244708,-400.0,0.0001705,2]
[356600759,1742770244718,-151.0,0.000172,2]
[356600760,1742770244728,-300.0,0.000172,6]
[356600761,1742770244738,-9904.66418558,0.00017245,2]
[356600762,1742770244747,-649.0,0.000175,2]
[356600763,1742770244757,-2048.76911849,0.000176,2]
[356600764,1742770244767,-800.0,0.00018,7]
[356600765,1742770244776,-21118.5140574,0.00018,4]
[356600766,1742770244785,-154729.09326715,0.00018,2]
[356600767,1742770244795,-402.19555124,0.00018,120]
[356600768,1742770244804,-10154.41120099,0.00018,4]
[356600769,1742770244814,-168.22,0.00018,2]
[356600770,1742770244823,-168.22,0.00018,2]
[356600771,1742770244833,-168.22,0.00018,2]
[356600772,1742770244843,-263.216401,0.00018,30]
[356600773,1742770244852,-500.0,0.0001822,2]
[356600774,1742770244862,-500.0,0.0001822,2]
[356600775,1742770244871,-500.0,0.0001822,2]
[356600776,1742770244881,-500.0,0.0001822,2]
[356600777,1742770244891,-500.0,0.0001822,2]
[356600778,1742770244900,-500.0,0.0001822,2]
[356600779,1742770244910,-500.0,0.0001822,2]
[356600780,1742770244920,-542.36828642,0.0001822,2]
[356600781,1742770244929,-9904.66418558,0.00018417,2]
[356600782,1742770244939,-823.0,0.00018469,2]
[356600783,1742770244949,-300.000001,0.000185,2]
[356600784,1742770244959,-158.89,0.000186,2]
[356600785,1742770244968,-300.0,0.000187,7]
[356600786,1742770244978,-8694.5608634,0.00019,120]
[356600787,1742770244988,-5330.331388,0.00019,20]
[356600788,1742770244997,-310.0,0.00019,5]
[356600789,1742770245008,-150.0,0.00019,10]
[356600790,1742770245018,-402.19555124,0.00019,120]
[356600791,1742770245027,-541.2424829,0.00019177,4]
[356600792,1742770245037,-3117.37573978,0.00019184,2]
[356600793,1742770245047,-9904.66418558,0.0001959,2]
[356600794,1742770245056,-363.4077672,0.000198,2]
[356600795,1742770245066,-160.801772,0.00019848,2]
[356600796,1742770245076,-174.20444999,0.000199,2]
[356600797,1742770245086,-500.0,0.00019973,2]
[356600798,1742770245097,-500.0,0.00019973,2]
[356600799,1742770245106,-500.0,0.00019973,2]
[356600800,1742770245116,-500.0,0.00019973,2]
[356600801,1742770245126,-500.0,0.00019973,2]
[356600802,1742770245135,-500.0,0.00019973,2]
[356600803,1742770245145,-500.0,0.00019973,2]
[356600804,1742770245154,-500.0,0.00019973,2]
[356600805,1742770245163,-500.0,0.00019973,2]
[356600806,1742770245173,-500.0,0.00019973,2]
[356600807,1742770245183,-500.0,0.00019973,2]
[356600808,1742770245192,-500.0,0.00019973,2]
[356600809,1742770245201,-500.0,0.00019973,2]
[356600810,1742770245211,-500.0,0.00019973,2]
[356600811,1742770245221,-580.56109265,0.00019973,2]
[356600812,1742770245234,-484.76252393,0.00019973,2]
[356600813,1742770245244,-500.0,0.00019973,2]
[356600814,1742770245254,-500.0,0.00019973,2]
[356600815,1742770245263,-205.40191666,0.00019973,2]
[356600816,1742770245273,-500.0,0.00019973,2]
[356600817,1742770245283,-500.0,0.00019973,2]
[356600818,1742770245292,-500.0,0.00019973,2]
[356600819,1742770245304,-500.0,0.00019973,2]
[356600820,1742770245314,-8734.15378299,0.0002,2]
[356600821,1742770245323,-3000.0,0.0002,21]
[356600822,1742770245333,-356.32937142,0.0002,2]
[356600823,1742770245343,-318.0,0.0002,30]
[356600824,1742770245352,-1904.0,0.0002,14]
[356600825,1742770245362,-1906.0,0.0002,14]
[356600826,1742770245372,-1904.0,0.0002,14]
[356600827,1742770245382,-250.0,0.0002,10]
[356600828,1742770245393,-402.19555124,0.0002,120]
[356600829,1742770245402,-20000.0,0.0002,7]
[356600830,1742770245412,-213.0,0.0002,120]
[356600831,1742770245422,-295467.14218701,0.0002,2]
[356600881,1742771241122,-698.641,0.00013699,2]
[356600882,1742771241144,-160.801772,0.00014,3]
[356600883,1742771241165,-5305.32387346,0.00014,2]
[356600936,1742771438625,-160.801772,0.00014,3]
[356600937,1742771438635,-319.93917345,0.00014,2]
[356600945,1742771441008,-929.06,0.00014,2]
[356600974,1742771445150,-1581.10580779,0.00014,2]
[356600975,1742771445160,-300.0,0.000142,5]
[356600976,1742771445170,-300.0,0.00014265,2]
[356600977,1742771445180,-160.0,0.00014265,2]
[356600978,1742771445189,-12458.93820146,0.00014266,2]
[356600979,1742771445199,-3000.0,0.00014275,2]
[356600980,1742771445208,-2200.0,0.00014647,2]
[356600981,1742771445218,-208.51378774,0.00014652,2]
[356600982,1742771445232,-332.48621226,0.00014652,2]
[356600983,1742771445241,-1797.01237881,0.00014652,2]
[356601025,1742771446842,-466.98762119,0.00014652,2]
[356601027,1742771446852,-1915.0,0.00014652,2]
[356601029,1742771446862,-400.0,0.00014742,2]
[356601031,1742771446871,-400.0,0.00014742,2]
[356601033,1742771446881,-885.39784635,0.000149,2]
[356601035,1742771446891,-160.0,0.00015074,2]
[356601037,1742771446900,-834.51197368,0.00015074,2]
[356601053,1742771447098,-418.2242758,0.00015074,2]
[356601054,1742771447120,-160.0,0.00015074,2]
[356601055,1742771447130,-728.68,0.000151,2]
[356601056,1742771447140,-420.0,0.00015624,2]
[356601057,1742771447149,-300.0,0.000157,6]
[356601058,1742771447158,-150.0,0.00016,2]
[356601059,1742771447168,-68.14513815,0.00016499,2]
[356601076,1742772433225,-500.0,0.00014547,2]
[356601077,1742772433246,-1079.29593793,0.00014748,2]
[356601078,1742772433271,-300.0,0.00014754,2]
[356601079,1742772433296,-500.0,0.00014755,2]
[356601080,1742772433320,-500.0,0.00014755,2]
[356601081,1742772433344,-500.0,0.00014755,2]
[356601082,1742772433369,-486.64104769,0.00014755,2]
[356601083,1742772433393,-500.0,0.00014755,2]
[356601084,1742772433417,-500.0,0.00014755,2]
[356601085,1742772433443,-500.0,0.00014755,2]
[356601086,1742772433468,-500.0,0.00014755,2]
[356601087,1742772433492,-500.0,0.00014755,2]
[356601088,1742772433516,-500.0,0.00014755,2]
[356601089,1742772433540,-500.0,0.00014755,2]
[356601090,1742772433565,-500.0,0.00014755,2]
[356601091,1742772433591,-500.0,0.00014755,2]
[356601092,1742772433615,-500.0,0.00014755,2]
[356601093,1742772433640,-500.0,0.00014755,2]
[356601094,1742772433669,-74.49491828,0.00014757,2]
[356601114,1742772632190,-500.0,0.00014756,2]
[356601115,1742772632200,-262.12894799,0.00014756,2]
[356601116,1742772632211,-237.87105201,0.00014756,2]
[356601117,1742772632220,-331.8490053,0.00014756,2]
[356601118,1742772632230,-500.0,0.00014756,2]
[356601119,1742772632239,-24825.50508172,0.00014757,2]
[356601120,1742772632249,-2569.82832951,0.00014781,2]
[356601121,1742772632260,-486.26563257,0.00014825,2]
[356601122,1742772632269,-500.0,0.0001486,2]
[356601123,1742772632278,-2200.0,0.00014874,2]
[356601124,1742772632287,-418.2242758,0.0001488,2]
[356601125,1742772632297,-160.0,0.0001488,2]
[356601126,1742772632306,-2092.51294359,0.0001488,2]
[356601127,1742772632315,-456.49225265,0.0001488,2]
[356601128,1742772632324,-160.0,0.00014881,2]
[356601129,1742772632333,-12458.93820146,0.00014881,2]
[356601130,1742772632342,-689.72,0.000149,2]
[356601131,1742772632351,-541.0,0.00014992,2]
[356601132,1742772632361,-2264.0,0.00014992,2]
[356601133,1742772632374,-1915.0,0.00014992,2]
[356601134,1742772632383,-336.22631331,0.0001639,2]
[356601135,1742772632392,-160.0,0.00016447,2]
[356601136,1742772632402,-834.51197368,0.00016447,2]
[356601137,1742772632411,-230.222026,0.00016616,2]
[356601138,1742772632420,-300.0,0.000172,6]
[356601139,1742772632429,-530.29554961,0.00017587,2]
[356601140,1742772632439,-190.54996743,0.00017587,2]
[356601141,1742772632449,-500.0,0.00017612,2]
[356601142,1742772632458,-500.0,0.00017612,2]
[356601143,1742772632467,-500.0,0.00017612,2]
[356601144,1742772632477,-500.0,0.00017612,2]
[356601145,1742772632487,-152.0,0.00017643,2]
[356601146,1742772632497,-528.179,0.00017992,2]
[356601147,1742772632507,-2264.0,0.00017992,2]
[356601148,1742772632516,-1915.0,0.00017992,2]
[356601149,1742772632526,-193.57848401,0.0001802,2]
[356601150,1742772632535,-19593.00848512,0.0001812,2]
[356601190,1742772637772,-10664.44553869,0.0001812,2]
[356601199,1742772640252,-130158.2018694,0.0001812,2]
[356601202,1742772643487,-250.22358192,0.0001812,2]
[356601203,1742772643498,-517.69471407,0.0001812,2]
[356601204,1742772643510,-978.2392378,0.0001812,2]
[356601205,1742772643529,-1682.00468569,0.0001812,2]
[356601223,1742772645965,-58156.18188731,0.0001812,2]
[356601224,1742772645975,-2200.0,0.0001812,2]
[356601225,1742772645986,-500.0,0.00018173,2]
[356601226,1742772645995,-206.74267667,0.00018173,2]
[356601227,1742772646004,-500.0,0.00018173,2]
[356601228,1742772646013,-501.28631142,0.00018173,2]
[356601229,1742772646024,-500.0,0.00018173,2]
[356601230,1742772646033,-500.0,0.00018173,2]
[356601231,1742772646043,-500.0,0.00018173,2]
[356601232,1742772646054,-318.57239955,0.00018218,2]
[356601233,1742772646063,-500.0,0.0001822,2]
[356601234,1742772646073,-500.0,0.0001822,2]
[356601235,1742772646082,-500.0,0.0001822,2]
[356601236,1742772646091,-500.0,0.0001822,2]
[356601237,1742772646101,-500.0,0.0001822,2]
[356601238,1742772646110,-500.0,0.0001822,2]
[356601239,1742772646119,-500.0,0.0001822,2]
[356601240,1742772646128,-564.60705488,0.0001822,2]
[356601241,1742772646138,-2800.0,0.0001822,2]
[356601242,1742772646147,-2800.0,0.0001822,2]
[356601243,1742772646156,-2800.0,0.0001822,2]
[356601244,1742772646165,-2800.0,0.0001822,2]
[356601245,1742772646174,-2800.0,0.0001822,2]
[356601246,1742772646183,-2800.0,0.0001822,2]
[356601247,1742772646192,-2800.0,0.0001822,2]
[356601248,1742772646202,-2800.0,0.0001822,2]
[356601249,1742772646211,-2800.0,0.0001822,2]
[356601250,1742772646220,-2800.0,0.0001822,2]
[356601251,1742772646229,-2800.0,0.0001822,2]
[356601252,1742772646238,-2800.0,0.0001822,2]
[356601253,1742772646247,-2800.0,0.0001822,2]